bitfinex-derivatives/quotes_ETHF0:USTF0_20250420
["timestamp","ask_amount","ask_price","bid_price","bid_amount"]
[1745191997137,1.7573,1583.1,1583.0,5.8225]
[1745191997334,1.7573,1583.1,1583.0,7.08602]
[1745191998034,1.7573,1583.1,1583.0,5.8225]
[1745191999537,5.96529564,1583.4,1583.0,14.0303]
[1745191999727,8.95011564,1583.4,1583.1,4.56937]
[1745191999922,1.7216,1583.3,1583.2,3.3478]
[1745192000622,2.98488,1583.3,1583.2,1.5694]
[1745192001022,2.98488,1583.3,1583.1,3.2962]
[1745192001224,2.97636,1583.2,1583.1,1.5276]
[1745192001432,6.18416,1583.2,1583.0,4.108]
[1745192001638,1.713,1583.1,1583.0,5.37152]
[1745192002138,1.713,1583.1,1583.0,7.14012]
[1745192002336,3.2078,1583.2,1583.1,1.26344]
[1745192002535,1.713,1583.3,1583.2,1.26336]
[1745192002729,9.17309564,1583.4,1583.1,1.7686]
[1745192002730,5.96529564,1583.4,1583.1,1.7686]
[1745192002927,10.43629564,1583.4,1583.2,1.26332]
[1745192003239,1.6203,1583.3,1583.2,1.26332]
[1745192004036,1.6203,1583.3,1583.2,2.75142]
[1745192004835,2.88358,1583.3,1583.2,1.4881]
[1745192006329,2.88358,1583.3,1583.2,2.75146]
[1745192006530,1.6203,1583.3,1583.2,2.75146]
[1745192007736,2.88358,1583.3,1583.2,2.75146]
[1745192007929,2.88358,1583.3,1583.2,1.4881]
[1745192009337,2.88358,1583.3,1583.2,2.75146]
[1745192010239,1.6203,1583.3,1583.2,2.75146]
[1745192010534,10.45135564,1583.4,1583.3,1.26328]
[1745192010535,9.18809564,1583.4,1583.3,1.26328]
[1745192010843,10.43634564,1583.4,1583.2,3.0416]
[1745192011141,1.6539,1583.3,1583.2,4.30491]
[1745192011334,2.91718,1583.3,1583.1,1.26339]
[1745192011638,5.93298,1583.3,1583.2,1.26336]
[1745192012345,5.93298,1583.3,1583.1,1.26338]
[1745192012642,1.7279,1583.2,1583.1,1.26338]
[1745192013940,1.7279,1583.2,1583.1,2.87638]
[1745192014736,10.45135564,1583.4,1583.1,2.87638]
[1745192014737,9.18809564,1583.4,1583.3,1.26328]
[1745192014941,0.015,1583.4,1583.3,10.37228]
[1745192015138,0.00946581,1583.7,1583.6,1.26304]
[1745192015451,3.04242581,1583.7,1583.6,1.26304]
[1745192016043,1.77946581,1583.7,1583.6,1.26304]
[1745192016343,1.77946581,1583.7,1583.6,4.18084]
[1745192017043,3.04242581,1583.7,1583.6,4.18084]
[1745192017243,3.04242581,1583.7,1583.6,2.9178]
[1745192017943,3.04242581,1583.7,1583.6,4.18084]
[1745192018344,3.04242581,1583.7,1583.6,2.9178]
[1745192020142,3.04242581,1583.7,1583.6,4.18084]
[1745192023245,3.04242581,1583.7,1583.5,1.6768]
[1745192023450,1.27242581,1583.7,1583.6,1.26304]
[1745192023643,0.00946581,1583.7,1583.6,1.26304]
[1745192027557,1.27242581,1583.7,1583.6,1.26304]
[1745192027759,0.00946581,1583.7,1583.6,1.26304]
[1745192028759,0.00946581,1583.7,1583.6,5.37104]
[1745192037864,0.00946581,1583.7,1583.6,10.37104]
[1745192038266,0.00946581,1583.7,1583.6,15.27644]
[1745192038855,0.00946581,1583.7,1583.6,15.78826791]
[1745192040160,0.00946581,1583.7,1583.6,15.27644]
[1745192041065,0.00946581,1583.7,1583.6,15.78453856]
[1745192041467,5.81e-06,1583.7,1583.6,15.78453856]
[1745192042765,5.81e-06,1583.7,1583.6,15.27644]
[1745192045067,5.81e-06,1583.7,1583.6,10.27644]
[1745192045562,5.81e-06,1583.7,1583.6,6.16844]
[1745192045967,9.95160581,1583.7,1583.6,4.107]
[1745192046267,11.21456581,1583.7,1583.6,1.26304]
[1745192046468,6.21456581,1583.7,1583.6,1.26304]
[1745192046667,12.19476145,1583.7,1583.6,1.26304]
[1745192047565,15.93180145,1583.7,1583.4,4.107]
[1745192047766,3.2078,1583.5,1583.4,5.3702]
[1745192047967,3.2078,1583.5,1583.4,4.107]
[1745192047968,4.47092,1583.5,1583.4,4.107]
[1745192048165,6.214,1583.5,1583.4,5.3702]
[1745192048668,7.9578,1583.5,1583.4,5.3702]
[1745192049968,9.22092,1583.5,1583.4,5.3702]
[1745192050372,9.22092,1583.5,1583.4,4.107]
[1745192050564,9.22092,1583.5,1583.4,5.3702]
[1745192051175,7.9578,1583.5,1583.4,5.3702]
[1745192052974,12.15920279,1583.5,1583.4,5.3702]
[1745192054874,12.15920279,1583.5,1583.1,10.5972]
[1745192055073,1.6746,1583.4,1583.3,1.26328]
[1745192055977,2.9378,1583.4,1583.2,1.26331]
[1745192056475,1.6746,1583.3,1583.2,1.26331]
[1745192059677,2.93788,1583.3,1583.2,1.26331]
[1745192059880,2.93788,1583.3,1583.2,1.26336]
[1745192060082,1.26347,1583.1,1582.9,4.108]
[1745192060380,1.5253,1583.0,1582.9,5.37153]
[1745192060577,3.2652,1583.0,1582.9,5.37153]
[1745192061178,3.2652,1583.0,1582.9,7.03053]
[1745192063384,10.17704184,1583.3,1583.2,1.26336]
[1745192063683,11.90844184,1583.3,1583.2,5.37136]
[1745192064074,2.8700762,1583.3,1583.2,13.57916]
[1745192064281,2.8700762,1583.3,1583.2,15.80716]
[1745192064486,1.0912262,1583.3,1583.2,15.80716]
[1745192065390,8.43050675,1583.4,1583.3,1.26328]
[1745192065585,8.43050675,1583.4,1583.3,4.43598]
[1745192065786,8.43050675,1583.4,1583.3,9.43598]
[1745192068089,8.43050675,1583.4,1583.3,4.43598]
[1745192069292,1.6664,1583.6,1583.5,1.24812]
[1745192069589,1.6664,1583.6,1583.5,5.35612]
[1745192073482,1.6664,1583.6,1583.5,7.08172]
[1745192076193,1.6664,1583.6,1583.5,9.30972]
[1745192077291,1.6664,1583.6,1583.5,7.08172]
[1745192079790,5.81e-06,1583.7,1583.6,1.26304]
[1745192079986,1.67670581,1583.7,1583.6,2.78024]
[1745192080185,1.67670581,1583.7,1583.6,4.50674]
[1745192082898,1.67670581,1583.7,1583.6,7.71454]
[1745192084601,5.81e-06,1583.7,1583.6,7.71454]
[1745192085405,5.81e-06,1583.7,1583.6,12.71454]
[1745192092908,5.81e-06,1583.7,1583.6,7.71454]
[1745192094905,1.4923,1584.3,1583.8,3.15716]
[1745192095104,1.5687,1584.2,1583.9,11.93081]
[1745192095305,1.5687,1584.2,1584.0,1.7218]
[1745192096117,1.5687,1584.2,1584.1,1.26264]
[1745192098106,3.277,1584.2,1584.1,1.26264]
[1745192102703,9.53956,1584.2,1584.1,1.26264]
[1745192103010,8.277,1584.2,1584.1,1.26264]
[1745192104008,3.277,1584.2,1584.1,1.26264]
[1745192104215,4.53956,1584.2,1584.1,1.26264]
[1745192104509,9.53956,1584.2,1584.0,1.26266]
[1745192104710,1.6341,1584.1,1583.9,4.47057]
[1745192104903,1.26283,1583.9,1583.8,4.105]
[1745192105102,5.93589,1584.0,1583.8,5.36784]
[1745192105309,3.081,1583.9,1583.8,5.36784]
[1745192105711,9.3438,1583.9,1583.8,5.36784]
[1745192108109,4.3438,1583.9,1583.8,5.36784]
[1745192108511,3.081,1583.9,1583.8,5.36784]
[1745192108709,4.3438,1583.9,1583.8,4.105]
[1745192109216,4.3438,1583.9,1583.8,5.36788]
[1745192109217,3.081,1583.9,1583.8,5.36788]
[1745192109802,4.3438,1583.9,1583.8,5.36788]
[1745192110206,3.081,1583.9,1583.8,5.36788]
[1745192110611,4.3438,1583.9,1583.8,5.36788]
[1745192111208,3.081,1583.9,1583.8,5.36788]
[1745192115325,4.3438,1583.9,1583.8,5.36788]
[1745192118616,3.081,1583.9,1583.8,5.36788]
[1745192118925,1.4653,1584.0,1583.9,1.2628]
[1745192119122,14.39580239,1584.1,1584.0,1.26272]
[1745192119320,14.39580239,1584.1,1584.0,5.91192]
[1745192119621,14.39580239,1584.1,1584.0,10.91192]
[1745192120017,8.43050675,1584.1,1584.0,12.63602]
[1745192120216,8.43050675,1584.1,1584.0,14.86402]
[1745192121526,8.43050675,1584.1,1584.0,9.86402]
[1745192122816,8.43050675,1584.1,1584.0,14.86402]
[1745192124830,6.31357838,1584.4,1584.0,13.6013]
[1745192125031,9.61007838,1584.4,1584.3,1.26248]
[1745192126018,9.61007838,1584.4,1584.3,2.91878]
[1745192127029,9.61007838,1584.4,1584.3,4.48578]
[1745192128630,3.2965,1584.4,1584.3,4.48578]
[1745192129631,7.88687838,1584.6,1584.5,1.26232]
[1745192129825,9.59927838,1584.6,1584.5,1.26232]
[1745192130325,8.02597838,1584.6,1584.5,4.52392]
[1745192131424,6.31357838,1584.6,1584.5,4.52392]
[1745192132230,6.31357838,1584.6,1584.5,6.75192]
[1745192133634,6.31357838,1584.7,1584.6,1.26224]
[1745192133828,6.31357838,1584.7,1584.6,7.63164]
[1745192138333,1.701,1584.9,1584.8,1.26208]
[1745192138532,1.26193,1585.0,1584.8,4.103]
[1745192138737,4.4253,1585.1,1584.9,1.26201]
[1745192143342,4.4253,1585.1,1585.0,1.26193]
[1745192147235,1.26194,1585.0,1584.9,1.26196]
[1745192147539,1.26197,1585.0,1584.8,5.36501]
[1745192147744,1.26201,1584.9,1584.8,4.101]
[1745192148147,1.26208,1584.9,1584.7,5.36313]
[1745192148443,3.0323,1584.8,1584.7,5.36313]
[1745192149243,4.29438,1584.8,1584.7,4.101]
[1745192149442,4.29438,1584.8,1584.7,5.36316]
[1745192150345,3.0323,1584.8,1584.7,5.36316]
[1745192150841,6.02158,1584.8,1584.7,5.36316]
[1745192151245,6.02158,1584.8,1584.7,4.101]
[1745192151543,9.22938,1584.8,1584.7,4.101]
[1745192153046,9.22938,1584.8,1584.7,5.36316]
[1745192153742,9.22938,1584.8,1584.6,1.26218]
[1745192153743,1.26216,1584.7,1584.6,1.26218]
[1745192153949,2.90036,1584.7,1584.6,4.102]
[1745192155250,8.86565564,1584.7,1584.6,4.102]
[1745192158548,8.86565564,1584.7,1584.5,1.27176581]
[1745192158549,1.26224,1584.6,1584.5,0.00946581]
[1745192158744,2.96254,1584.6,1584.5,0.00946581]
[1745192158944,6.17034,1584.6,1584.5,0.00946581]
[1745192159252,11.17034,1584.6,1584.5,0.00946581]
[1745192159443,9.9081,1584.6,1584.4,4.102]
[1745192159750,1.26247,1584.4,1584.2,5.36449]
[1745192159952,1.7003,1584.3,1584.2,5.36449]
[1745192160151,1.7003,1584.3,1584.2,1.26249]
[1745192160342,1.7003,1584.3,1584.2,5.36449]
[1745192160541,1.7003,1584.3,1584.2,4.102]
[1745192160743,2.96278,1584.3,1584.2,4.102]
[1745192161346,1.26256,1584.2,1584.0,4.102]
[1745192161551,5.87606,1584.2,1584.1,1.26264]
[1745192165755,4.6135,1584.2,1584.1,1.26264]
[1745192165953,4.6135,1584.2,1584.1,2.94034]
[1745192167346,3.1882,1584.2,1584.1,2.94034]
[1745192169749,4.45076,1584.2,1584.1,2.94034]
[1745192175554,3.1882,1584.2,1584.1,2.94034]
[1745192176054,3.1882,1584.2,1584.1,4.44484]
[1745192177058,4.45076,1584.2,1584.1,4.44484]
[1745192181553,4.45076,1584.2,1584.1,1.26264]
[1745192181755,4.4508,1584.2,1584.1,1.26264]
[1745192182254,3.1882,1584.2,1584.1,1.26264]
[1745192182762,4.45076,1584.2,1584.1,1.26264]
[1745192183363,3.1882,1584.2,1584.1,1.26264]
[1745192183563,3.1882,1584.2,1584.1,4.45064]
[1745192187360,4.6251,1584.3,1584.1,4.45064]
[1745192187665,1.4173,1584.3,1584.2,2.98676]
[1745192187864,1.4909,1584.4,1584.3,1.26248]
[1745192188065,18.24281104,1584.5,1584.4,1.2624]
[1745192188271,13.5398354,1584.5,1584.4,1.2624]
[1745192188565,16.7476354,1584.5,1584.3,10.16871]
[1745192188755,16.7476354,1584.5,1584.4,1.2624]
[1745192189466,1.2624,1584.4,1584.3,6.06673]
[1745192189666,4.5367,1584.4,1584.3,7.08863]
[1745192191769,3.2743,1584.4,1584.3,7.08863]
[1745192191970,4.5367,1584.4,1584.3,7.08863]
[1745192193669,3.2743,1584.4,1584.3,7.08863]
[1745192194771,4.5367,1584.4,1584.3,7.08863]
[1745192195372,7.40703702,1584.5,1584.4,1.2624]
[1745192195673,4.19923702,1584.5,1584.4,4.4854]
[1745192195872,5.97193702,1584.5,1584.4,4.4854]
[1745192196673,7.23425702,1584.5,1584.4,4.4854]
[1745192197373,9.17973702,1584.5,1584.2,1.26254]
[1745192197671,1.26251,1584.3,1584.2,5.36454]
[1745192198064,4.46111,1584.3,1584.2,5.36454]
[1745192198572,3.1986,1584.3,1584.2,5.36454]
[1745192198776,3.1986,1584.3,1584.2,7.06384]
[1745192199573,7.45029564,1584.4,1584.3,1.26248]
[1745192199774,5.96529564,1584.4,1584.3,4.48258]
[1745192199966,5.96529564,1584.4,1584.3,5.94708]
[1745192201171,7.58609564,1584.4,1584.3,5.94708]
[1745192201978,8.84849564,1584.4,1584.3,5.94708]
[1745192202176,10.31279564,1584.4,1584.3,5.94708]
[1745192202977,9.05039564,1584.4,1584.3,5.94708]
[1745192203273,10.31279564,1584.4,1584.3,5.94708]
[1745192203481,14.51203266,1584.4,1584.3,5.94708]
[1745192203777,1.26248,1584.3,1584.2,5.3645]
[1745192203976,2.88328,1584.3,1584.2,5.3645]
[1745192207481,2.88328,1584.3,1584.2,4.102]
[1745192207778,7.08251702,1584.3,1584.2,4.102]
[1745192208882,1.26256,1584.2,1584.1,4.101]
[1745192209179,5.88936,1584.2,1584.1,4.101]
[1745192209565,5.88936,1584.2,1584.1,5.36364]
[1745192209880,5.88936,1584.2,1584.1,4.101]
[1745192210182,1.26272,1584.0,1583.9,8.57156]
[1745192210980,1.3675,1584.0,1583.9,8.57156]
[1745192211482,3.0881,1584.0,1583.9,8.57156]
[1745192215081,3.0881,1584.0,1583.9,10.35736]
[1745192216583,8.62273298,1584.2,1584.1,1.26264]
[1745192216780,2.76676,1584.2,1584.1,1.26264]
[1745192217083,4.45596,1584.2,1584.0,4.43067]
[1745192217284,1.6892,1584.1,1584.0,4.43067]
[1745192217490,2.95184,1584.1,1584.0,4.43067]
[1745192217982,2.95184,1584.1,1584.0,4.43072]
[1745192218182,3.1065,1584.1,1584.0,4.43072]
[1745192218383,1.6892,1584.1,1584.0,4.43072]
[1745192218583,24.47522213,1584.3,1584.1,1.26264]
[1745192218783,26.16442213,1584.3,1584.1,4.40584]
[1745192219375,26.16442213,1584.3,1584.2,1.7789]
[1745192219985,12.79954675,1584.3,1584.2,1.7789]
[1745192221086,12.79954675,1584.3,1584.1,2.73964]
[1745192221284,2.88206,1584.2,1584.1,4.51854]
[1745192221480,1.6195,1584.2,1584.1,4.51854]
[1745192222379,11.11034675,1584.3,1584.2,1.26256]
[1745192222579,11.11034675,1584.3,1584.2,4.44596]
[1745192222781,8.43050675,1584.3,1584.2,4.44596]
[1745192222997,8.43050675,1584.3,1584.2,8.54696]
[1745192223387,9.69298675,1584.3,1584.2,8.54696]
[1745192223588,9.32306997,1584.3,1584.2,8.54696]
[1745192225878,10.74386997,1584.3,1584.2,8.54696]
[1745192226585,10.74386997,1584.3,1584.2,7.2844]
[1745192226885,10.74386997,1584.3,1584.2,4.101]
[1745192227093,1.26264,1584.1,1584.0,5.36366]
[1745192227389,1.6206,1584.2,1584.1,1.26264]
[1745192227591,1.6206,1584.2,1584.1,2.69044]
[1745192227789,1.6206,1584.2,1584.1,4.46004]
[1745192229494,11.34406783,1584.3,1584.2,1.26256]
[1745192229703,11.34406783,1584.3,1584.2,4.39136]
[1745192230191,12.60654783,1584.3,1584.2,4.39136]
[1745192230392,14.34934783,1584.3,1584.2,4.39136]
[1745192231794,11.34406783,1584.3,1584.2,4.39136]
[1745192235206,12.60654783,1584.3,1584.2,4.39136]
[1745192235395,14.25844783,1584.3,1584.2,4.39136]
[1745192236704,7.13006897,1584.3,1584.2,4.39136]
[1745192236905,7.13006897,1584.3,1584.2,1.26256]
[1745192237204,8.48886897,1584.3,1584.2,1.26256]
[1745192237499,7.22638897,1584.3,1584.2,1.26256]
[1745192237802,7.22638897,1584.3,1584.2,2.94936]
[1745192238503,8.48886897,1584.3,1584.2,2.94936]
[1745192238904,7.22638897,1584.3,1584.2,2.94936]
[1745192239302,7.22638897,1584.3,1584.2,7.04936]
[1745192239909,5.86758897,1584.3,1584.2,7.04936]
[1745192247204,4.20622316,1584.3,1584.2,12.04936]
[1745192248113,4.20622316,1584.3,1584.2,14.27736]
[1745192250513,4.20622316,1584.3,1584.2,9.27736]
[1745192252112,4.20622316,1584.3,1584.2,12.48516]
[1745192252915,4.20622316,1584.3,1584.2,9.27736]
[1745192253316,3.1426,1584.5,1584.4,1.2624]
[1745192253520,3.1426,1584.5,1584.4,4.4702]
[1745192257413,3.1426,1584.5,1584.4,1.2624]
[1745192258322,1.2624,1584.4,1584.3,1.26242]
[1745192258524,4.3371,1584.4,1584.3,1.26242]
[1745192258819,1.26248,1584.3,1584.2,3.2078]
[1745192259021,2.91448,1584.3,1584.2,7.3068]
[1745192259220,9.24938,1584.3,1584.2,7.3068]
[1745192260121,4.24938,1584.3,1584.2,8.56936]
[1745192261425,2.9869,1584.3,1584.2,8.56936]
[1745192261614,4.24938,1584.3,1584.2,8.56936]
[1745192262419,2.9869,1584.3,1584.2,8.56936]
[1745192264328,2.9869,1584.3,1584.2,5.36156]
[1745192267832,2.9869,1584.3,1584.2,8.56326]
[1745192269339,3.79174996,1584.3,1584.2,8.56326]
[1745192272039,2.45684996,1584.3,1584.2,8.56326]
[1745192272241,0.80484996,1584.3,1584.2,8.56326]
[1745192272431,9.45248997,1584.4,1584.3,1.26248]
[1745192274440,9.45248997,1584.4,1584.3,3.02188]
[1745192275646,3.93378731,1584.4,1584.3,3.02188]
[1745192278647,0.80478731,1584.4,1584.3,6.22968]
[1745192278848,8.06068997,1584.6,1584.5,1.26232]
[1745192279046,6.32348997,1584.6,1584.5,5.36032]
[1745192281051,7.58572997,1584.6,1584.5,5.36032]
[1745192281239,6.32348997,1584.6,1584.5,5.36032]
[1745192283055,0.8047222,1584.6,1584.5,5.36032]
[1745192283656,2.0669622,1584.6,1584.5,5.36032]
[1745192283857,2.0669622,1584.6,1584.5,4.098]
[1745192284053,2.0669622,1584.6,1584.5,5.36032]
[1745192285156,5.2747622,1584.6,1584.5,4.098]
[1745192285358,1.2624,1584.4,1584.3,4.098]
[1745192286255,1.4163,1584.4,1584.3,5.36048]
[1745192286852,2.6787,1584.4,1584.3,5.36048]
[1745192288247,2.6787,1584.4,1584.3,4.098]
[1745192289656,7.6787,1584.4,1584.3,4.098]
[1745192289862,3.15627,1584.3,1583.9,9.64622865]
[1745192290056,3.2078,1584.2,1583.9,1.26278]
[1745192290361,2.66782,1584.1,1583.9,1.26278]
[1745192290659,5.80922,1584.1,1583.9,1.26278]
[1745192290863,1.7312,1584.0,1583.9,1.26278]
[1745192292461,1.7312,1584.0,1583.9,4.27398]
[1745192296759,1.42,1584.1,1584.0,1.26272]
[1745192296965,3.1377,1584.1,1584.0,1.26272]
[1745192297158,3.1377,1584.1,1584.0,2.96692]
[1745192300164,3.1377,1584.1,1584.0,1.26272]
[1745192302464,3.1377,1584.1,1584.0,2.89182]
[1745192303968,0.0149,1584.1,1584.0,2.89182]
[1745192304168,0.0149,1584.1,1584.0,7.44482]
[1745192305069,0.0149,1584.1,1584.0,9.67282]
[1745192307971,6.32348997,1584.4,1584.3,1.26248]
[1745192308170,6.32348997,1584.4,1584.3,8.56828]
[1745192308569,6.32348997,1584.4,1584.3,13.06238]
[1745192313374,9.42968997,1584.4,1584.3,13.06238]
[1745192313766,3.1062,1584.4,1584.3,13.06238]
[1745192314166,3.1062,1584.4,1584.3,7.3058]
[1745192314674,4.3686,1584.4,1584.3,7.3058]
[1745192314875,4.3686,1584.4,1584.3,8.56828]
[1745192315578,9.3686,1584.4,1584.3,4.098]
[1745192315877,1.2625,1584.3,1584.1,1.26259]
[1745192316076,4.4676,1584.3,1584.2,4.097]
[1745192316467,3.2051,1584.3,1584.2,5.35956]
[1745192317975,4.46758,1584.3,1584.2,5.35956]
[1745192320286,4.46758,1584.3,1584.2,4.097]
[1745192321584,7.67538,1584.3,1584.2,4.097]
[1745192323480,11.4129,1584.3,1584.0,1.26268]
[1745192323670,1.26264,1584.1,1584.0,5.36068]
[1745192323871,1.26264,1584.1,1584.0,4.098]
[1745192324082,2.90434,1584.1,1584.0,4.098]
[1745192325775,2.90434,1584.1,1584.0,5.36072]
[1745192326279,6.6417,1584.1,1583.8,4.47062]
[1745192326475,4.37232,1584.0,1583.8,1.26282]
[1745192326675,1.7552,1583.9,1583.8,1.26282]
[1745192326875,4.3546,1583.9,1583.8,1.26282]
[1745192327483,1.26288,1583.8,1583.7,4.098]
[1745192327688,3.01808,1583.8,1583.7,4.098]
[1745192329090,3.01808,1583.8,1583.7,5.36095]
[1745192329294,3.01808,1583.8,1583.7,4.098]
[1745192331379,3.01808,1583.8,1583.7,5.36096]
[1745192331575,3.01808,1583.8,1583.7,4.098]
[1745192331785,3.01808,1583.8,1583.7,5.36096]
[1745192332387,3.01808,1583.8,1583.7,4.098]
[1745192333589,3.01808,1583.8,1583.7,5.36096]
[1745192335489,1.7552,1583.8,1583.4,99.4528]
[1745192335694,1.26304,1583.6,1583.5,4.098]
[1745192335891,1.26304,1583.6,1583.5,5.36112]
[1745192336084,2.98334,1583.6,1583.5,5.36112]
[1745192337290,2.98334,1583.6,1583.5,4.098]
[1745192339887,6.19114,1583.6,1583.5,4.098]
[1745192340393,1.2632,1583.4,1583.3,4.098]
[1745192341093,4.3327,1583.4,1583.3,4.098]
[1745192341685,1.26328,1583.3,1583.2,4.34919]
[1745192341886,2.97338,1583.3,1583.2,8.44819]
[1745192342282,1.7101,1583.3,1583.2,8.44819]
[1745192344199,1.7101,1583.3,1583.2,10.67619]
[1745192345191,1.7101,1583.3,1583.2,8.44819]
[1745192345789,4.6064,1583.5,1583.4,1.2632]
[1745192345790,5.86957,1583.5,1583.4,1.2632]
[1745192345992,7.61217,1583.5,1583.4,1.2632]
[1745192347401,1.2632,1583.4,1583.3,2.93823]
[1745192347799,7.61218,1583.5,1583.4,1.2632]
[1745192348105,3.1412,1583.5,1583.4,1.2632]
[1745192348291,7.41069564,1583.6,1583.5,1.26312]
[1745192348492,8.67373564,1583.6,1583.5,7.10292]
[1745192348999,10.38243564,1583.6,1583.5,7.10292]
[1745192350902,9.11939564,1583.6,1583.5,7.10292]
[1745192351900,4.41714,1583.6,1583.5,7.10292]
[1745192354703,3.1541,1583.6,1583.5,7.10292]
[1745192354900,4.38527581,1583.7,1583.5,7.10292]
[1745192355106,1.75686581,1583.7,1583.6,4.35924]
[1745192355604,0.00946581,1583.7,1583.6,4.35924]
[1745192355806,0.00946581,1583.7,1583.6,9.35924]
[1745192356001,0.00946581,1583.7,1583.6,4.35924]
[1745192361402,5.74592581,1583.7,1583.6,4.098]
[1745192361809,5.74592581,1583.7,1583.6,5.36104]
[1745192365310,4.48296581,1583.7,1583.6,5.36104]
[1745192367903,1.26312,1583.5,1583.4,2.57895]
[1745192368099,1.26312,1583.5,1583.4,4.098]
[1745192368500,2.59962,1583.5,1583.4,4.098]
[1745192368705,2.59962,1583.5,1583.4,5.3612]
[1745192369811,2.59962,1583.5,1583.4,4.098]
[1745192370914,4.31222,1583.5,1583.4,4.098]
[1745192371101,1.2632,1583.4,1583.3,3.2078]
[1745192371307,4.3681,1583.4,1583.3,4.47108]
[1745192371515,4.3681,1583.4,1583.3,1.26328]
[1745192373005,1.26328,1583.3,1583.2,8.47751]
[1745192373207,4.20768,1583.3,1583.2,5.36131]
[1745192373717,4.20768,1583.3,1583.2,4.098]
[1745192374107,4.20768,1583.3,1583.0,3.0749]
[1745192374108,1.26342,1583.2,1583.0,4.33836]
[1745192374410,2.7196,1583.1,1583.0,4.33836]
[1745192374608,2.7196,1583.1,1583.0,8.43736]
[1745192374815,4.3493,1583.1,1583.0,8.43736]
[1745192377111,4.3493,1583.1,1583.0,10.66536]
[1745192378208,4.3493,1583.1,1583.0,8.43736]
[1745192379212,4.3493,1583.1,1583.0,10.66536]
[1745192380214,4.3493,1583.1,1583.0,8.43736]
[1745192380612,3.0346,1583.1,1583.0,8.43736]
[1745192380818,16.50076137,1583.3,1583.2,1.26336]
[1745192381018,10.1772714,1583.3,1583.2,1.26336]
[1745192381210,11.8192714,1583.3,1583.2,1.26336]
[1745192383019,11.8192714,1583.3,1583.2,2.69276]
[1745192383416,10.1772714,1583.3,1583.2,2.69276]
[1745192383620,10.1772714,1583.3,1583.2,4.11516]
[1745192383814,10.1772714,1583.3,1583.2,5.78496]
[1745192385220,10.1772714,1583.3,1583.2,8.01296]
[1745192385421,5.96529564,1583.3,1583.2,8.01296]
[1745192387026,4.21197576,1583.4,1583.3,1.26328]
[1745192387214,4.21197576,1583.4,1583.3,7.12048]
[1745192388816,3.0869,1583.5,1583.4,1.2632]
[1745192389021,4.35002,1583.5,1583.4,3.0214]
[1745192389217,3.0869,1583.5,1583.4,1.2632]
[1745192390216,3.0869,1583.5,1583.4,3.0195]
[1745192392325,4.35002,1583.5,1583.4,1.2632]
[1745192393628,3.0869,1583.5,1583.4,1.2632]
[1745192394929,4.35002,1583.5,1583.4,1.2632]
[1745192395633,3.0869,1583.5,1583.4,1.2632]
[1745192396933,4.35002,1583.5,1583.4,1.2632]
[1745192397533,1.2632,1583.4,1583.3,5.36222]
[1745192397828,1.6282,1583.4,1583.3,5.36222]
[1745192400035,1.6282,1583.4,1583.3,7.14392]
[1745192400927,6.84159576,1583.5,1583.4,1.2632]
[1745192401127,8.57109576,1583.5,1583.4,1.2632]
[1745192401534,1.2632,1583.4,1583.3,5.36222]
[1745192401745,2.9927,1583.4,1583.3,5.36222]
[1745192402032,2.9927,1583.4,1583.3,4.099]
[1745192402237,2.9927,1583.4,1583.3,5.36228]
[1745192402944,1.7295,1583.4,1583.3,5.36228]
[1745192403435,5.57847576,1583.5,1583.4,1.2632]
[1745192403635,5.57847576,1583.5,1583.4,2.6314]
[1745192403830,7.31277576,1583.5,1583.4,4.3932]
[1745192408140,3.1008,1583.5,1583.4,4.3932]
[1745192408738,4.36392,1583.5,1583.4,1.2632]
[1745192409741,4.36392,1583.5,1583.4,5.3612]
[1745192409939,7.57172,1583.5,1583.4,4.098]
[1745192410445,1.26331,1583.3,1583.2,5.36134]
[1745192411040,4.05361,1583.3,1583.2,5.36134]
[1745192412043,2.7903,1583.3,1583.2,5.36134]
[1745192412237,4.05358,1583.3,1583.2,5.36134]
[1745192412439,5.70748,1583.3,1583.2,5.36134]
[1745192413141,10.72486087,1583.3,1583.2,5.36134]
[1745192413437,9.46158087,1583.3,1583.2,5.36134]
[1745192413641,8.07308087,1583.3,1583.2,5.36134]
[1745192414244,8.07308087,1583.3,1583.2,12.02554]
[1745192415045,6.67128087,1583.3,1583.2,12.02554]
[1745192416544,1.6539,1583.3,1583.2,12.02554]
[1745192417539,4.21197576,1583.4,1583.3,1.26328]
[1745192417745,4.21197576,1583.4,1583.3,3.03048]
[1745192419931,5.95927576,1583.4,1583.3,3.03048]
[1745192421540,7.22247576,1583.4,1583.2,7.58931]
[1745192421739,2.9632,1583.3,1583.2,7.58931]
[1745192422140,2.9632,1583.3,1583.2,5.36131]
[1745192423348,2.9632,1583.3,1583.2,1.26331]
[1745192423541,2.9632,1583.3,1583.2,5.36131]
[1745192424250,2.9632,1583.3,1583.2,7.58931]
[1745192424643,2.9632,1583.3,1583.2,3.49131]
[1745192424845,2.9632,1583.3,1583.2,7.58931]
[1745192425142,2.9632,1583.3,1583.2,5.36131]
[1745192425343,2.9632,1583.3,1583.2,8.56911]
[1745192426343,7.98051374,1583.3,1583.2,5.36131]
[1745192426750,7.98051374,1583.3,1583.2,6.73771]
[1745192426942,6.63281374,1583.3,1583.2,6.73771]
[1745192427143,6.63281374,1583.3,1583.2,8.96571]
[1745192429151,6.63281374,1583.3,1583.2,6.73771]
[1745192429552,5.82747576,1583.3,1583.2,6.73771]
[1745192430749,5.82747576,1583.3,1583.2,5.36131]
[1745192433155,5.82747576,1583.3,1583.2,7.58931]
[1745192435962,7.09075576,1583.3,1583.2,2.228]